Cogmind - Beta 13 X1 @@@ ROGUE MODE // 2023.08.13 @ 15:29:06 Player: f3-rnm Result: Destroyed by Autobeam Turret with Autobeam Performance ------------- Evolutions (0) 0 Regions Visited (3) 600 Robots Destroyed (14) 70 Value Destroyed (373) 373 Prototype IDs (0) 0 Alien Tech Used (0) 0 Bonus (0) 0 TOTAL SCORE: 1043 Bonus ------- None Cogmind --------- Core Integrity 0/250 Matter 224/300 Energy 155/170 System Corruption 0% Temperature Cool (12) Movement Rolling (120) Ox1 Location -10/Subcaves Parts ------- > --- POWER (1) -------- Makeshift Power Source > --- PROPULSION (2) --- Spiked Treads Subdweller Monowheel > --- UTILITY (2) ------ Scrap Shield > --- WEAPON (2) ------- Barrage Gun Subdweller Shrapnel Launcher > --- INVENTORY (5) ---- Small Storage Unit Signal Interpreter Barrage Gun Battle Cannon Makeshift Axe Peak State ------------ > --- POWER ------------ Makeshift Power Source > --- PROPULSION ------- Spiked Treads Subdweller Monowheel > --- UTILITY ---------- Scrap Shield > --- WEAPON ----------- Barrage Gun Barrage Gun > --- INVENTORY -------- Subdweller Monowheel Small Storage Unit Signal Interpreter Battle Cannon Makeshift Axe [Rating: 19] Favorites ----------- Power Light Ion Engine Engine Light Ion Engine Propulsion Aluminum Leg Treads Spiked Treads Leg Aluminum Leg Wheel Subdweller Monowheel Utility Small Storage Unit Device Subdweller Optics Storage Small Storage Unit Protection Scrap Shield Weapon Small Laser Energy Gun Small Laser Ballistic Gun Barrage Gun Launcher Subdweller Shrapnel Launcher Special Weapon Enhanced Flamer Slashing Weapon Makeshift Axe Build | -11 -10 -10 -10 ------- Run | Jun Mat Min Sub Slots Evolved . | . . . . Power . | . . . . Propulsion . | . . . . Utility . | . . . . Weapon . | . . . . Parts Attached 23 | 6 . . 17 Power 2 | 1 . . 1 Engine 2 | 1 . . 1 Core . | . . . . Reactor . | . . . . Propulsion 5 | 2 . . 3 Treads 1 | . . . 1 Leg 2 | 2 . . . Wheel 2 | . . . 2 Hover . | . . . . Flight . | . . . . Utility 5 | 1 . . 4 Device 2 | . . . 2 Storage 1 | 1 . . . Processor . | . . . . Hackware . | . . . . Protection 2 | . . . 2 Artifact . | . . . . Weapon 11 | 2 . . 9 Energy Gun 3 | 2 . . 1 Energy Cannon . | . . . . Ballistic Gun 4 | . . . 4 Ballistic Cannon . | . . . . Launcher 2 | . . . 2 Special Weapon 1 | . . . 1 Impact Weapon . | . . . . Slashing Weapon 1 | . . . 1 Piercing Weapon . | . . . . Special Melee Weapon . | . . . . Unidentified Prototypes . | . . . . Parts Lost 6 | . . . 6 Power . | . . . . Propulsion 1 | . . . 1 Utility 1 | . . . 1 Weapon 4 | . . . 4 Highest Loss Streak 2 | . . . 2 To Critical Strikes . | . . . . Average Slot Usage (%) 89 | . 85 85 90 Engine 14 | . 14 14 14 Treads 5 | . . . 5 Leg 17 | . 28 28 15 Wheel 5 | . . . 6 Device 4 | . . . 4 Storage 9 | . 14 14 9 Protection 4 | . . . 5 Energy Gun 15 | . 28 28 14 Ballistic Gun 9 | . . . 10 Special Weapon 2 | . . . 2 Naked Turns . | . . . . Heaviest Build 28 | 10 10 10 28 Greatest Support 20 | 20 20 20 20 Greatest Overweight (x) 1 | . . . 1 Average Overweight (x) . | . . . . Largest Inventory Capacity 8 | 8 8 8 8 Average Capacity 7 | 7 8 8 6 Most Carried 8 | 5 6 6 8 Average Carried 5 | 2 5 6 6 Final Capacity 8 | 8 8 8 5 Final Carried 6 | 5 6 6 5 Class Distribution -------------------- 63% | Mutant 36% | Derelict-Mutant Dominant Class ---------------- Mutant | -10/Materials Mutant | -10/Mines Mutant | -10/Subcaves Resources | -11 -10 -10 -10 ----------- Run | Jun Mat Min Sub Matter Collected 447 | 86 . . 361 Remotely . | . . . . Salvage Created 452 | 86 . . 366 Parts 33 | 5 . . 28 Haulers Intercepted . | . . . . Recyclers Shooed 1 | 1 . . . Parts Field Recycled . | . . . . Retrieved Matter . | . . . . Parts Self-Destructed 8 | . . . 8 Prevented . | . . . . Kills | -11 -10 -10 -10 ------- Run | Jun Mat Min Sub Combat Hostiles Destroyed 12 | . . . 12 Guns 6 | . . . 6 Cannons 1 | . . . 1 AOE 4 | . . . 4 Classes Destroyed 4 | 2 . . 2 Tunneler 1 | 1 . . . Recycler 1 | 1 . . . Swarmer 4 | . . . 4 Subdweller 8 | . . . 8 Best Kill Streak 4 | 2 . . 4 Combat Bots Only 4 | . . . 4 Max Kills in Single Turn 4 | 1 . . 4 Gunslinging . | . . . . Exploded 4 | . . . 4 Melee . | . . . . Uniques/NPCs Destroyed . | . . . . Combat | -11 -10 -10 -10 -------- Run | Jun Mat Min Sub Damage Taken 1072 | . 140 . 932 Core 251 | . 42 . 209 Absorbed by Shields . | . . . . Core Remaining (%) 100 | 100 . . . Volleys Fired 40 | 7 1 . 32 Largest 2 | 2 2 . 2 Hottest 120 | 80 80 . 120 Shots Fired 78 | 14 2 . 62 Gun 74 | 14 2 . 58 Cannon . | . . . . Launcher 1 | . . . 1 Special 3 | . . . 3 Kinetic 26 | . . . 26 Thermal 52 | 14 2 . 36 Explosive . | . . . . Electromagnetic . | . . . . Robot Hit Streak 12 | 5 7 . 12 Robot Miss Streak 2 | 2 . . 1 Penetration Max . | . . . . Secondary Targets . | . . . . Shots Hit Robots 58 | 9 2 . 47 Core Hits 25 | 3 . . 22 Critical Kills . | . . . . Critical Parts Destroyed . | . . . . Critical Strikes 2 | . . . 2 Burn 2 | . . . 2 Melee Attacks 1 | . . . 1 Impact . | . . . . Slashing 1 | . . . 1 Piercing . | . . . . Sneak Attacks . | . . . . Combat Hostiles . | . . . . Follow-up Attacks . | . . . . Damage Inflicted 1138 | 101 27 . 1010 Guns 865 | 101 23 . 741 Cannons . | . . . . Explosions 236 | . . . 236 Melee . | . . . . Ramming 4 | . 4 . . Kinetic 559 | . . . 559 Thermal 575 | 101 23 . 451 Explosive . | . . . . Electromagnetic . | . . . . Impact . | . . . . Slashing . | . . . . Piercing . | . . . . Highest Corruption . | . . . . Average Corruption . | . . . . Corruption Purged . | . . . . Corruption Blocked . | . . . . Overload Shots . | . . . . Overflow Damage 9 | . . . 9 Projectiles . | . . . . Explosions 9 | . . . 9 Melee . | . . . . Knockbacks . | . . . . Impact . | . . . . Kinetic . | . . . . Secondary . | . . . . Self-Inflicted Damage . | . . . . Shots . | . . . . Rammed 1 | . . . 1 Targets Rammed 2 | . 1 . 1 Kicked 1 | . 1 . . Crushed . | . . . . Highest Temperature 54 | 54 18 . 27 Average Temperature 15 | 24 12 . 9 Received Heat Transfer 285 | . 75 . 210 Siege Activations . | . . . . Robots Corrupted . | . . . . Combat Hostiles . | . . . . Parts Fried . | . . . . Impact Corruptions . | . . . . Robots Melted 1 | . . . 1 Combat Hostiles 1 | . . . 1 Parts Melted 7 | . . . 7 Heat Transferred 1485 | 225 50 . 1210 Parts Sabotaged . | . . . . Parts Stolen . | . . . . Parts Stripped . | . . . . Power Chain Reactions . | . . . . Missiles Intercepted . | . . . . Alert | -11 -10 -10 -10 ------- Run | Jun Mat Min Sub Peak Influence 29 | 10 29 10 . Initial 10 | . 6 10 . Average 12 | 2 24 10 . Maximum Alert Level . | . . . . Low Security (%) 100 | 100 100 100 . Level 1 . | . . . . Level 2 . | . . . . Level 3 . | . . . . Level 4 . | . . . . Level 5 . | . . . . High Security . | . . . . Max Security . | . . . . Squads Dispatched 3 | . 3 . . Investigation 1 | . 1 . . Extermination . | . . . . Reinforcement 2 | . 2 . . Assault . | . . . . Garrison . | . . . . Intercept . | . . . . Searches Triggered . | . . . . Construction Impeded . | . . . . Haulers Reinforced . | . . . . Active Scanning Responses . | . . . . Cargo Convoy Interrupts . | . . . . Stealth | -11 -10 -10 -10 --------- Run | Jun Mat Min Sub Distress Signals 2 | . 2 . . Communications Jammed . | . . . . Distress Signals . | . . . . Times Spotted 36 | . 6 . 30 Peak Tracking Total 6 | . 6 . 6 Tactical Retreats 2 | . . . 2 Traps | -11 -10 -10 -10 ------- Run | Jun Mat Min Sub Traps Triggered 1 | . 1 . . Indirectly . | . . . . Trap Hack Attempts . | . . . . Triggered . | . . . . Disarmed . | . . . . Reprogrammed . | . . . . Reused . | . . . . Traps Extracted . | . . . . Installed . | . . . . Triggered . | . . . . Machines | -11 -10 -10 -10 ---------- Run | Jun Mat Min Sub Machines Disabled 1 | . . . 1 Max in Single Turn 1 | . . . 1 Machines Repaired . | . . . . Machines Sabotaged . | . . . . Overloaded Fab Kills . | . . . . Hacking | -11 -10 -10 -10 --------- Run | Jun Mat Min Sub Machines Accessed 1 | . 1 . . Terminals 1 | . 1 . . Fabricators . | . . . . Repair Stations . | . . . . Recycling Units . | . . . . Scanalyzers . | . . . . Garrison Access . | . . . . Total Hacks 1 | . 1 . . Successful 1 | . 1 . . Failed . | . . . . Catastrophic . | . . . . Database Lockouts . | . . . . Manual 1 | . 1 . . Terminals 1 | . 1 . . Fabricators . | . . . . Repair Stations . | . . . . Recycling Units . | . . . . Scanalyzers . | . . . . Garrison Access . | . . . . Terminal Hacks 1 | . 1 . . Branch Access Points 1 | . 1 . . Fabricator Hacks . | . . . . Repair Station Hacks . | . . . . Recycling Unit Hacks . | . . . . Scanalyzer . | . . . . Garrison Access Hacks . | . . . . Unauthorized Hacks . | . . . . Terminals . | . . . . Fabricators . | . . . . Repair Stations . | . . . . Recycling Units . | . . . . Scanalyzers . | . . . . Garrison Access . | . . . . Data Cores Recovered . | . . . . Used . | . . . . Hacking Detections . | . . . . Full Trace Events . | . . . . Feedback Events . | . . . . Feedback Blocked . | . . . . Robot Schematics Acquired . | . . . . Robots Built . | . . . . Authchips . | . . . . Time . | . . . . Total Robot Build Rating . | . . . . Part Schematics Acquired . | . . . . Parts Built . | . . . . Authchips . | . . . . Time . | . . . . Total Part Build Rating . | . . . . Parts Repaired . | . . . . Time . | . . . . Parts Recycled . | . . . . Recycled Matter . | . . . . Retrieved Matter . | . . . . Retrieved Components . | . . . . Parts Scanalyzed . | . . . . Part Schematics Acquired . | . . . . Parts Damaged . | . . . . Bothacking | -11 -10 -10 -10 ------------ Run | Jun Mat Min Sub Used RIF Installer . | . . . . Robots Hacked . | . . . . Non-combat . | . . . . Combat . | . . . . Robot Hacks Applied . | . . . . Relay Couplers Released . | . . . . Fabnet Peak Effective % . | . . . . Robots Rewired . | . . . . Allies Hacked . | . . . . Hacks Repelled . | . . . . Allies | -11 -10 -10 -10 -------- Run | Jun Mat Min Sub Total Allies . | . . . . Largest Group . | . . . . Highest-Rated Group . | . . . . Highest-Rated Ally . | . . . . Total Orders . | . . . . Ally Attacks . | . . . . Total Damage . | . . . . Kills . | . . . . Allies Corrupted . | . . . . Allies Melted . | . . . . Intel | -11 -10 -10 -10 ------- Run | Jun Mat Min Sub Robot Analysis Total . | . . . . Derelict Logs Recovered 1 | . . . 1 Drone Launches . | . . . . Drone Recoveries . | . . . . Exploration | -11 -10 -10 -10 ------------- Run | Jun Mat Min Sub Turns Passed 1716 | 115 110 80 1411 Spaces Moved 1038 | 67 87 10 874 Core 8 | 8 . . . Treads 171 | . . . 171 Legs 714 | 59 87 10 558 Wheels 145 | . . . 145 Hover . | . . . . Flight . | . . . . Fastest Speed 50 | 50 120 120 110 Average Speed 137 | 111 120 120 141 Slowest Speed 260 | 120 120 120 260 Overloaded Moves . | . . . . Propulsion Burnouts . | . . . . Robots Hopped . | . . . . Cave-ins Triggered . | . . . . Exploration Rate (%) 23 | 6 25 5 58 Regions Visited 3 Branch Regions 2 Pre-discovered Areas . | . . . . Known Exits Taken 1 | . 1 . . Unknown Exits Taken 2 | 1 . 1 . Scrap Searched 1 | . . . 1 Spaces Dug . | . . . . Terrain Destroyed 9 | . . . 9 Melee . | . . . . Projectile . | . . . . AOE 9 | . . . 9 Terrain Rammed . | . . . . Walls Destroyed . | . . . . Machines Disabled . | . . . . Actions | -11 -10 -10 -10 --------- Run | Jun Mat Min Sub Total 1250 | 93 90 78 989 Wait 118 | 3 1 69 45 Move 1035 | 66 86 9 874 Hop . | . . . . Pick Up 23 | 11 1 . 11 Fast Attach 2 | . . . 2 Attach 13 | 6 . . 7 Detach . | . . . . Swap 8 | . . . 8 Drop 7 | . . . 7 Fire 40 | 7 1 . 32 Melee 1 | . . . 1 Ram . | . . . . Kick 1 | . 1 . . Crush 1 | . . . 1 Escape Stasis . | . . . . Rewire . | . . . . Trap . | . . . . Miscellaneous 1 | . . . 1 Route ------- -11/Junkyard -10/Materials (discovered 2 exits: *Min x2) -10/Mines -10/Subcaves (discovered 1 exit: [*Mat]) History --------- Turn | Location | Event 15 | -11/Junkyard | Discovered new exit (range 16) 116 | -11/Junkyard | Entered Materials 124 | -10/Materials | Identified exit to Mines 226 | -10/Materials | Entered Mines 296 | -10/Mines | Discovered new exit (range 4) 306 | -10/Mines | Entered Subcaves 307 | -10/Subcaves | Build established: Mutant 674 | -10/Subcaves | Discovered new exit (range 7) 825 | -10/Subcaves | Shifting Twisted Machinery released Barrage Gun 825 | -10/Subcaves | Shifting Twisted Machinery released Sub. Optics 995 | -10/Subcaves | Learned Materials terminal intel 1059 | -10/Subcaves | Core integrity fell below 50% 1135 | -10/Subcaves | Shifting Twisted Machinery released Riot Gun 1154 | -10/Subcaves | Shifting Twisted Machinery released Sub. Shrapnel Launcher 1211 | -10/Subcaves | Core integrity fell below 20% 1388 | -10/Subcaves | Build established: Derelict-Mutant 1717 | -10/Subcaves | Destroyed by Autobeam Turret with Autobeam Last Messages --------------- 01216_ 2Z-PZG(R) destroyed. 01221_ WC-UTD(R) destroyed. 01240_ Dropped Sml. Storage Unit. 01241_ Dropped Mak. Armor Plating. 01252_ Acquired Scrap Shield. 01254_ Acquired 57 matter. 01262_ Acquired 27 matter. 01272_ Dropped Wheel. 01272_ Acquired Sub. Monowheel. 01501_ Dropped Lgt. Ion Engine. 01630_ Dropped Sub. Monowheel. 01630_ Acquired Sub. Shrapnel Launcher. 01672_ Acquired 38 matter. 01674_ Scrap Shield Fragment affixed to Scrap Shield (+25). 01705_ S-10 Pest destroyed. 01705_ Destroyed Flight Unit. 01705_ S-10 Pest destroyed. 01711_ Lgt. Assault Rifle fries itself beyond repair. 01713_ Lgt. Ion Engine fries itself beyond repair. 01716_ Flight Unit fries itself beyond repair. Map ----- +----------------------------------------------------+ | ?????????????????????????????????????????????????? | | ?????????????????????????????????????????????????? | | ?????????????????????????????????????????????????? | | ?????????????????????????????????????????????????? | | ?????????????????????????????????????????????????? | | ?????????????????????????????????????????????????? | | ?????????????????????????????????????????????????? | | ?????????????????????????????????????????????????? | | ?????????????????????????????????????????????????? | | ?????????????????????????????????????????????????? | | ?????????????????????????????????????????????????? | | ??????????????????????? ????????????????????????? | | ??????????????????????? ????????????????????????? | | ???????????????? #????? ???????????????????????? | | ??????????????? #???? ???????????????????????? | | ??????????????#< #??? ???????????????????????? | | ?????????????? ### #???????????????????????? | | ??????????????#< ????????????????????????? | | ??????????????? ???????##???????????????? | | ????????????????# ?????? ##??? ??????????? | | ?????????????????? ????? "## ??????????? | | ??????????????????? ???? ;;= ?????????? | | ????????????????????# #??? =%[ t?????????? | | ????????########?????# ##? [% = ????????? | | ??????### # ## ####??# ## % t"????????? | | ??????# ##??# @ ;; ; ????????? | | ??????# #### #######;;; ????????? | | ?????## # # ## ##??????????????????###?? | | ##???# #### # ##????########??????? ##? | | #???# #?# ##?##### ###??### #? | | ##??## ##?## #### #??# #? | | # ##### ##???#### ## #??# #? | | ## ## ##???????### ##### [ #?## #? | | ?## ###??????????## #??# [*!##?# #?? | | ??####?????????????#### ##?# #!%##??# #??? | | ??????????????????????### ##??# ##!%&#### #???? | | ????????????????????????####???##?#! ## #???? | | ??????????????????????????????????#* # #???? | | ??????????????????????????????##?## ##?## | | ??????????????????????????????# ## ## | | ?????????????????????????????## | | ?????????????????????????????# | | ?????????????????????????????# ## # | | ?????????????????????????????## ### ## #### | | ??????????????????????????????## ## ## ##??? | | ???????????????????????????????## ##??? | | ????????????????????????????????# #??? | | ????????????????????????????????# #??? | | ????????????????????????????????# ## #?? | | ????????????????????????????????# ######?? | +----------------------------------------------------+ Best States ------------- Heat Dissipation 25 Energy Generation 15 Energy Capacity 170 Matter Stores 300 Matter Capacity 300 Sight Range 21 Terrain Scan Density 10 Armor Coverage 800 Evasion (%) 55 Recoil Reduction 1 Item Schematics ----------------- None Robot Schematics ------------------ None Fabricated ------------ Nothing Alien Tech Used ----------------- None Achievements -------------- None Challenges ------------ None Game ------ Seed ExoskeletonGravityDriver Manual? 0 Play Time 00:10:51 Cumulative 55.9 hours Start 2023.08.13 @ 14:20:12 End 2023.08.13 @ 15:29:06 Sessions 1 Manual Loads 0 Difficulty Rogue Special Mode None Game No. 46 Rogue 10 Adventurer 36 Explorer 0 Win Type - Total 6 Types 1/0/5/0/0/0/0/0/0 Lore% 40 Gallery% 60 Achievement% 51 Wizard Run 0 Options --------- ASCII 0 Keyboard 0 Movement Mouse Keybinds 0 Fullscreen 1 Font 18/SmallcapsGlow Map View 76x50 Tactical HUD 1 Map Filters NONE Filters NONE Steam 1 RUN: 149f8d29-fd45-46b3-b138-abcaaf002c80